[Event "*** SCC Grand Prix: Titled Tuesday Blitz"]
[Site "Chess.com"]
[Date "2020.06.09"]
[Round "2"]
[White "temus_galaktionov"]
[Black "Julianos82"]
[Result "0-1"]
[WhiteElo "2710"]
[BlackElo "2377"]
[TimeControl "180+1"]
[EndTime "9:19:15 PDT"]
[Termination "Julianos82 won by resignation"]

1. d4 {[%clk 0:03:00.9]} 1... d5 {[%clk 0:02:59.4]} 2. Nf3 {[%clk 0:03:01.5]}
2... c6 {[%clk 0:02:58.8]} 3. c4 {[%clk 0:03:02.2]} 3... dxc4 {[%clk 0:02:59.7]}
4. e3 {[%clk 0:03:01.2]} 4... Be6 {[%clk 0:02:59.3]} 5. a4 {[%clk 0:03:00]} 5...
Nf6 {[%clk 0:02:58.7]} 6. Na3 {[%clk 0:02:59.8]} 6... c5 {[%clk 0:02:58.1]} 7.
Bxc4 {[%clk 0:02:57]} 7... Bxc4 {[%clk 0:02:57.5]} 8. Nxc4 {[%clk 0:02:57.9]}
8... e6 {[%clk 0:02:57.7]} 9. O-O {[%clk 0:02:57.3]} 9... Nc6 {[%clk 0:02:58]}
10. dxc5 {[%clk 0:02:54.1]} 10... Qxd1 {[%clk 0:02:58.9]} 11. Rxd1 {[%clk
0:02:53.5]} 11... Ne4 {[%clk 0:02:32.7]} 12. Nd6+ {[%clk 0:02:42.5]} 12... Nxd6
{[%clk 0:02:31.4]} 13. cxd6 {[%clk 0:02:43.4]} 13... Rd8 {[%clk 0:02:15.9]} 14.
b3 {[%clk 0:02:41.6]} 14... Bxd6 {[%clk 0:02:07.6]} 15. Bb2 {[%clk 0:02:41.6]}
15... f6 {[%clk 0:02:01.1]} 16. Kf1 {[%clk 0:02:39.1]} 16... Ke7 {[%clk
0:01:57.3]} 17. Ke2 {[%clk 0:02:38.4]} 17... Bb4 {[%clk 0:01:51.3]} 18. Rac1
{[%clk 0:02:32.9]} 18... Rxd1 {[%clk 0:01:47.2]} 19. Kxd1 {[%clk 0:02:32.6]}
19... Rd8+ {[%clk 0:01:47.1]} 20. Ke2 {[%clk 0:02:33.2]} 20... a6 {[%clk
0:01:39.2]} 21. Rc4 {[%clk 0:02:30.8]} 21... Bd6 {[%clk 0:01:37]} 22. h3 {[%clk
0:02:29.2]} 22... h5 {[%clk 0:01:34.9]} 23. Nd4 {[%clk 0:02:22.5]} 23... Nxd4+
{[%clk 0:01:33]} 24. Bxd4 {[%clk 0:02:23.4]} 24... Rd7 {[%clk 0:01:24.3]} 25.
Bb6 {[%clk 0:02:21.3]} 25... f5 {[%clk 0:01:12.7]} 26. Rc8 {[%clk 0:02:20.2]}
26... Be5 {[%clk 0:01:05.8]} 27. f4 {[%clk 0:01:42.1]} 27... Bf6 {[%clk
0:01:01.4]} 28. Bc5+ {[%clk 0:01:23.2]} 28... Kf7 {[%clk 0:01:00.4]} 29. Rf8+
{[%clk 0:01:20.3]} 29... Kg6 {[%clk 0:00:59.7]} 30. Rb8 {[%clk 0:01:14.7]} 30...
e5 {[%clk 0:00:56.3]} 31. b4 {[%clk 0:01:06]} 31... e4 {[%clk 0:00:53.4]} 32. b5
{[%clk 0:00:47.5]} 32... axb5 {[%clk 0:00:52.6]} 33. axb5 {[%clk 0:00:48.4]}
33... Kf7 {[%clk 0:00:48.5]} 34. Rf8+ {[%clk 0:00:40.3]} 34... Kg6 {[%clk
0:00:48.5]} 35. Rc8 {[%clk 0:00:36.7]} 35... Kf7 {[%clk 0:00:46.4]} 36. g3
{[%clk 0:00:31]} 36... g6 {[%clk 0:00:40.6]} 37. Bb4 {[%clk 0:00:22]} 37... Ke6
{[%clk 0:00:31.4]} 38. Rg8 {[%clk 0:00:20.9]} 38... Kf7 {[%clk 0:00:31.2]} 39.
Rc8 {[%clk 0:00:21.5]} 39... Ke6 {[%clk 0:00:31.3]} 40. Ba5 {[%clk 0:00:19.3]}
40... Rd5 {[%clk 0:00:29.3]} 41. Bd2 {[%clk 0:00:09.5]} 41... Rxb5 {[%clk
0:00:28.9]} 42. Kd1 {[%clk 0:00:09.1]} 42... Rd5 {[%clk 0:00:27.3]} 43. Kc2
{[%clk 0:00:08.2]} 43... Rd6 {[%clk 0:00:27.1]} 44. Re8+ {[%clk 0:00:08.5]}
44... Kf7 {[%clk 0:00:26.9]} 45. Rb8 {[%clk 0:00:09.2]} 45... Rd7 {[%clk
0:00:27.2]} 46. Bb4 {[%clk 0:00:08.1]} 46... g5 {[%clk 0:00:26.9]} 47. Bd2
{[%clk 0:00:05]} 47... g4 {[%clk 0:00:26]} 48. hxg4 {[%clk 0:00:05.4]} 48...
hxg4 {[%clk 0:00:26.9]} 49. Bb4 {[%clk 0:00:05.4]} 49... Ke6 {[%clk 0:00:26.4]}
50. Re8+ {[%clk 0:00:04.9]} 50... Kd5 {[%clk 0:00:26.2]} 51. Rf8 {[%clk
0:00:05.2]} 51... Ke6 {[%clk 0:00:26.4]} 52. Re8+ {[%clk 0:00:05.7]} 52... Be7
{[%clk 0:00:25]} 53. Bxe7 {[%clk 0:00:05.5]} 53... Rxe7 {[%clk 0:00:25.9]} 54.
Rf8 {[%clk 0:00:06]} 54... Rf7 {[%clk 0:00:25.6]} 55. Rd8 {[%clk 0:00:06.4]}
55... Rc7+ {[%clk 0:00:24.1]} 56. Kd2 {[%clk 0:00:05.2]} 56... Rd7+ {[%clk
0:00:24.5]} 57. Rxd7 {[%clk 0:00:05.5]} 57... Kxd7 {[%clk 0:00:25.4]} 58. Kc3
{[%clk 0:00:06.2]} 58... Kc6 {[%clk 0:00:25.9]} 59. Kc4 {[%clk 0:00:06.6]} 59...
b5+ {[%clk 0:00:26]} 60. Kb4 {[%clk 0:00:07.5]} 60... Kb6 {[%clk 0:00:26.4]} 61.
Kb3 {[%clk 0:00:07.9]} 61... Kc5 {[%clk 0:00:26.8]} 62. Kc3 {[%clk 0:00:08.8]}
62... b4+ {[%clk 0:00:27.3]} 63. Kb3 {[%clk 0:00:09.6]} 63... Kb5 {[%clk
0:00:27.7]} 64. Kb2 {[%clk 0:00:10.5]} 64... Kc4 {[%clk 0:00:28.1]} 65. Kc2
{[%clk 0:00:10]} 65... b3+ {[%clk 0:00:28.6]} 66. Kb2 {[%clk 0:00:10.9]} 66...
Kd3 {[%clk 0:00:29.1]} 0-1

[Event "*** SCC Grand Prix: Titled Tuesday Blitz"]
[Site "Chess.com"]
[Date "2020.06.09"]
[Round "2"]
[White "Margarita2907"]
[Black "letsgoband"]
[Result "0-1"]
[WhiteElo "2047"]
[BlackElo "2408"]
[TimeControl "180+1"]
[EndTime "9:19:16 PDT"]
[Termination "letsgoband won by resignation"]

1. e4 {[%clk 0:02:59.5]} 1... e5 {[%clk 0:02:58]} 2. Nf3 {[%clk 0:02:56.6]} 2...
Nc6 {[%clk 0:02:57.2]} 3. Bc4 {[%clk 0:02:55.6]} 3... Nf6 {[%clk 0:02:56.8]} 4.
d3 {[%clk 0:02:53.5]} 4... Bc5 {[%clk 0:02:55.8]} 5. c3 {[%clk 0:02:39.9]} 5...
d6 {[%clk 0:02:53.6]} 6. h3 {[%clk 0:02:33.3]} 6... a6 {[%clk 0:02:47.6]} 7. a4
{[%clk 0:02:32]} 7... Ba7 {[%clk 0:02:42.4]} 8. Nbd2 {[%clk 0:02:21.6]} 8... h6
{[%clk 0:02:40.2]} 9. Bb3 {[%clk 0:02:14.8]} 9... O-O {[%clk 0:02:38.4]} 10. O-O
{[%clk 0:02:13.1]} 10... Be6 {[%clk 0:02:36.1]} 11. Re1 {[%clk 0:02:06.5]} 11...
Qd7 {[%clk 0:02:27.8]} 12. Nf1 {[%clk 0:02:01.8]} 12... Ne7 {[%clk 0:02:26.3]}
13. Ng3 {[%clk 0:01:53.5]} 13... c5 {[%clk 0:02:23.1]} 14. d4 {[%clk 0:01:46.8]}
14... Bxb3 {[%clk 0:02:19.3]} 15. Qxb3 {[%clk 0:01:45.1]} 15... Nc6 {[%clk
0:02:19.5]} 16. dxe5 {[%clk 0:01:29.3]} 16... dxe5 {[%clk 0:02:17.6]} 17. Rd1
{[%clk 0:01:25.5]} 17... Qc7 {[%clk 0:02:15.7]} 18. Be3 {[%clk 0:01:24]} 18...
Na5 {[%clk 0:02:09.9]} 19. Qc2 {[%clk 0:01:21]} 19... c4 {[%clk 0:02:08.8]} 20.
Nf5 {[%clk 0:01:17.4]} 20... Bxe3 {[%clk 0:02:06.3]} 21. Nxe3 {[%clk 0:01:17]}
21... Nb3 {[%clk 0:02:05.4]} 22. Rab1 {[%clk 0:01:13.3]} 22... b5 {[%clk
0:02:05.7]} 23. axb5 {[%clk 0:01:11.5]} 23... axb5 {[%clk 0:02:06.6]} 24. Nd5
{[%clk 0:01:09.1]} 24... Nxd5 {[%clk 0:01:44.3]} 25. exd5 {[%clk 0:01:09.5]}
25... Qd6 {[%clk 0:01:38.9]} 26. Qe4 {[%clk 0:01:05]} 26... Rae8 {[%clk
0:01:37.9]} 27. Nh4 {[%clk 0:01:00.9]} 27... g6 {[%clk 0:01:37.1]} 28. Qe3
{[%clk 0:00:52.9]} 28... Kh7 {[%clk 0:01:36.1]} 29. Nf3 {[%clk 0:00:46.5]} 29...
f5 {[%clk 0:01:32.4]} 30. Nd2 {[%clk 0:00:39.4]} 30... Nc5 {[%clk 0:01:30.4]}
31. Nf1 {[%clk 0:00:20.1]} 31... Nd3 {[%clk 0:01:24]} 32. b3 {[%clk 0:00:19.6]}
32... Qxd5 {[%clk 0:01:18.9]} 33. Qa7+ {[%clk 0:00:18.8]} 33... Rf7 {[%clk
0:01:18.8]} 34. Qa5 {[%clk 0:00:15.9]} 34... Qc5 {[%clk 0:01:04]} 35. bxc4
{[%clk 0:00:14.4]} 35... Qxf2+ {[%clk 0:01:01.5]} 36. Kh1 {[%clk 0:00:13.2]}
36... bxc4 {[%clk 0:00:59.6]} 37. Qb5 {[%clk 0:00:12.2]} 37... Qf4 {[%clk
0:00:59]} 38. Qxe8 {[%clk 0:00:09.2]} 38... Rg7 {[%clk 0:00:53.4]} 39. Qc6
{[%clk 0:00:06.2]} 39... Nf2+ {[%clk 0:00:51.6]} 40. Kg1 {[%clk 0:00:05.7]}
40... Nxd1 {[%clk 0:00:52]} 41. Rxd1 {[%clk 0:00:06.3]} 41... e4 {[%clk
0:00:49.1]} 42. Rd7 {[%clk 0:00:05.8]} 42... e3 {[%clk 0:00:48.8]} 43. Rxg7+
{[%clk 0:00:04.9]} 43... Kxg7 {[%clk 0:00:49.7]} 44. Qd7+ {[%clk 0:00:03.5]}
44... Kg8 {[%clk 0:00:47.4]} 45. Qd8+ {[%clk 0:00:03.1]} 45... Kf7 {[%clk
0:00:47]} 46. Qd7+ {[%clk 0:00:03.2]} 46... Kf6 {[%clk 0:00:42.8]} 47. Qe8
{[%clk 0:00:03]} 47... Qf2+ {[%clk 0:00:41.9]} 48. Kh1 {[%clk 0:00:01.8]} 48...
Qxf1+ {[%clk 0:00:41.7]} 49. Kh2 {[%clk 0:00:02.7]} 49... Qf4+ {[%clk
0:00:41.1]} 50. Kh1 {[%clk 0:00:01.9]} 50... Qe4 {[%clk 0:00:38.6]} 51. Qf8+
{[%clk 0:00:02.1]} 51... Kg5 {[%clk 0:00:37.7]} 52. Qd8+ {[%clk 0:00:01.7]}
52... Kh5 {[%clk 0:00:36.6]} 53. Qg8 {[%clk 0:00:01.8]} 53... e2 {[%clk
0:00:35.8]} 54. Kh2 {[%clk 0:00:01.8]} 54... e1=Q {[%clk 0:00:34.7]} 55. g4+
{[%clk 0:00:01.1]} 55... fxg4 {[%clk 0:00:35.6]} 56. hxg4+ {[%clk 0:00:02]} 0-1

[Event "*** SCC Grand Prix: Titled Tuesday Blitz"]
[Site "Chess.com"]
[Date "2020.06.09"]
[Round "2"]
[White "Andreikka"]
[Black "Ginger_GM"]
[Result "1-0"]
[WhiteElo "2906"]
[BlackElo "2583"]
[TimeControl "180+1"]
[EndTime "9:19:18 PDT"]
[Termination "Andreikka won by resignation"]

1. c4 {[%clk 0:03:00.7]} 1... f5 {[%clk 0:02:59]} 2. Nc3 {[%clk 0:03:00.2]} 2...
Nf6 {[%clk 0:02:58.4]} 3. g3 {[%clk 0:02:59.6]} 3... d6 {[%clk 0:02:58.1]} 4. d4
{[%clk 0:02:58.3]} 4... e6 {[%clk 0:02:50.3]} 5. Nf3 {[%clk 0:02:56.8]} 5... Be7
{[%clk 0:02:50]} 6. Bg2 {[%clk 0:02:56.5]} 6... O-O {[%clk 0:02:48.7]} 7. O-O
{[%clk 0:02:53.1]} 7... Ne4 {[%clk 0:02:48.6]} 8. Qc2 {[%clk 0:02:46.2]} 8...
Nxc3 {[%clk 0:02:48]} 9. bxc3 {[%clk 0:02:38.5]} 9... Nc6 {[%clk 0:02:47.7]} 10.
e4 {[%clk 0:02:34.8]} 10... e5 {[%clk 0:02:46.9]} 11. c5 {[%clk 0:02:01.4]}
11... fxe4 {[%clk 0:02:43.6]} 12. Qxe4 {[%clk 0:02:00.9]} 12... d5 {[%clk
0:02:43.3]} 13. Qe2 {[%clk 0:01:56.4]} 13... e4 {[%clk 0:01:47.1]} 14. Nd2
{[%clk 0:01:52.7]} 14... Bf6 {[%clk 0:01:37.2]} 15. Nb3 {[%clk 0:01:46]} 15...
Bf5 {[%clk 0:01:26.9]} 16. f3 {[%clk 0:01:34.6]} 16... exf3 {[%clk 0:01:25.3]}
17. Bxf3 {[%clk 0:01:35.5]} 17... Qd7 {[%clk 0:01:23.5]} 18. Bf4 {[%clk
0:01:26.1]} 18... Rae8 {[%clk 0:01:23]} 19. Qg2 {[%clk 0:01:24.7]} 19... g5
{[%clk 0:01:21.5]} 20. Bxd5+ {[%clk 0:01:20.1]} 20... Kg7 {[%clk 0:01:20.8]} 21.
Bd2 {[%clk 0:01:05.6]} 21... Bh3 {[%clk 0:01:20.4]} 22. Qh1 {[%clk 0:01:05.2]}
22... Bxf1 {[%clk 0:01:16.9]} 23. Rxf1 {[%clk 0:01:06.1]} 23... Bd8 {[%clk
0:01:16.7]} 24. Rxf8 {[%clk 0:01:03.6]} 24... Rxf8 {[%clk 0:01:16.4]} 25. Qe4
{[%clk 0:00:52.3]} 25... Qh3 {[%clk 0:01:10.7]} 26. Qd3 {[%clk 0:00:48.7]} 26...
Qf5 {[%clk 0:00:57.2]} 27. Qxf5 {[%clk 0:00:45.7]} 27... Rxf5 {[%clk 0:00:58.1]}
28. Be4 {[%clk 0:00:46.3]} 28... Rf8 {[%clk 0:00:56.6]} 29. g4 {[%clk
0:00:46.1]} 29... Re8 {[%clk 0:00:52.1]} 30. Bf3 {[%clk 0:00:45.3]} 30... Bf6
{[%clk 0:00:50]} 31. Kf2 {[%clk 0:00:43.2]} 31... Nd8 {[%clk 0:00:47.9]} 32. Na5
{[%clk 0:00:41.8]} 32... b6 {[%clk 0:00:47.7]} 33. cxb6 {[%clk 0:00:38]} 33...
axb6 {[%clk 0:00:47.7]} 34. Nc4 {[%clk 0:00:38.9]} 34... Nf7 {[%clk 0:00:47.5]}
35. a4 {[%clk 0:00:27.3]} 35... Nd6 {[%clk 0:00:47.2]} 36. Nxd6 {[%clk
0:00:20.5]} 36... cxd6 {[%clk 0:00:47.5]} 37. h3 {[%clk 0:00:19.4]} 37... Re7
{[%clk 0:00:47.3]} 38. Bd5 {[%clk 0:00:19.7]} 38... Ra7 {[%clk 0:00:44.1]} 39.
Bc6 {[%clk 0:00:20.3]} 39... Rc7 {[%clk 0:00:42.8]} 40. d5 {[%clk 0:00:19.5]}
40... Bd8 {[%clk 0:00:31.7]} 41. Be3 {[%clk 0:00:19]} 41... Rf7+ {[%clk
0:00:31]} 42. Ke2 {[%clk 0:00:19.2]} 42... Re7 {[%clk 0:00:19.3]} 43. Kd3 {[%clk
0:00:19.1]} 43... Kg6 {[%clk 0:00:19]} 44. Bb5 {[%clk 0:00:17.6]} 44... h5
{[%clk 0:00:18.7]} 45. c4 {[%clk 0:00:17]} 45... hxg4 {[%clk 0:00:18.8]} 46.
hxg4 {[%clk 0:00:17.9]} 46... Kh6 {[%clk 0:00:16.2]} 47. Ba6 {[%clk 0:00:15.5]}
47... Rf7 {[%clk 0:00:15.8]} 48. Ke2 {[%clk 0:00:12.6]} 48... Rf8 {[%clk
0:00:14.1]} 49. Bc8 {[%clk 0:00:10.3]} 49... Kg6 {[%clk 0:00:13.3]} 50. Bd7
{[%clk 0:00:07.9]} 50... Rf7 {[%clk 0:00:13.2]} 51. Be8 {[%clk 0:00:07.8]} 51...
Kg7 {[%clk 0:00:11.9]} 52. Bxf7 {[%clk 0:00:08.4]} 52... Kxf7 {[%clk 0:00:12.2]}
53. Kd3 {[%clk 0:00:09.3]} 53... Kf6 {[%clk 0:00:12.4]} 54. Ke4 {[%clk
0:00:10.2]} 54... Bc7 {[%clk 0:00:12.5]} 55. Bd4+ {[%clk 0:00:08.8]} 55... Kg6
{[%clk 0:00:12]} 56. Kd3 {[%clk 0:00:09.4]} 56... Kf7 {[%clk 0:00:06.3]} 57. Kc3
{[%clk 0:00:09.6]} 57... Ke7 {[%clk 0:00:06]} 58. Kb4 {[%clk 0:00:10.2]} 58...
Kd7 {[%clk 0:00:06.3]} 59. Kb5 {[%clk 0:00:10.8]} 1-0

[Event "*** SCC Grand Prix: Titled Tuesday Blitz"]
[Site "Chess.com"]
[Date "2020.06.09"]
[Round "2"]
[White "Semen_Khanin"]
[Black "elohunter1999"]
[Result "1-0"]
[WhiteElo "2734"]
[BlackElo "2488"]
[TimeControl "180+1"]
[EndTime "9:19:19 PDT"]
[Termination "Semen_Khanin won by resignation"]

1. e4 {[%clk 0:03:00.9]} 1... e5 {[%clk 0:02:59.7]} 2. Nf3 {[%clk 0:03:00.7]}
2... Nc6 {[%clk 0:03:00]} 3. Bb5 {[%clk 0:03:00.4]} 3... a6 {[%clk 0:02:59.9]}
4. Ba4 {[%clk 0:03:00.1]} 4... Nf6 {[%clk 0:03:00.2]} 5. O-O {[%clk 0:03:00.7]}
5... Be7 {[%clk 0:02:57.2]} 6. d3 {[%clk 0:03:00.5]} 6... b5 {[%clk 0:02:53.8]}
7. Bb3 {[%clk 0:03:01]} 7... d6 {[%clk 0:02:51]} 8. a3 {[%clk 0:03:01.3]} 8...
O-O {[%clk 0:02:41.8]} 9. Nc3 {[%clk 0:03:01.8]} 9... Bg4 {[%clk 0:02:25.3]} 10.
Be3 {[%clk 0:03:01]} 10... Nd4 {[%clk 0:02:24.1]} 11. Bxd4 {[%clk 0:03:00.8]}
11... exd4 {[%clk 0:02:24.3]} 12. Nd5 {[%clk 0:03:01.7]} 12... Nxd5 {[%clk
0:02:23.4]} 13. Bxd5 {[%clk 0:03:01.5]} 13... Rc8 {[%clk 0:02:22.5]} 14. Bc6
{[%clk 0:03:01.1]} 14... Bd7 {[%clk 0:02:06.6]} 15. Bxd7 {[%clk 0:02:58.5]}
15... Qxd7 {[%clk 0:02:06.8]} 16. Nxd4 {[%clk 0:02:58.9]} 16... Bf6 {[%clk
0:02:05.6]} 17. c3 {[%clk 0:02:58.9]} 17... d5 {[%clk 0:01:50.8]} 18. Nf5 {[%clk
0:02:47.9]} 18... Rfe8 {[%clk 0:01:45.1]} 19. Qg4 {[%clk 0:02:46.4]} 19... Rcd8
{[%clk 0:01:32]} 20. Rfe1 {[%clk 0:02:25.6]} 20... g6 {[%clk 0:01:22.5]} 21.
Nh6+ {[%clk 0:02:01.5]} 21... Kg7 {[%clk 0:01:21.3]} 22. Nf5+ {[%clk 0:01:43.4]}
22... Kf8 {[%clk 0:01:02.7]} 23. Ne3 {[%clk 0:01:40.4]} 23... dxe4 {[%clk
0:01:02.6]} 24. dxe4 {[%clk 0:01:40.7]} 24... Qxg4 {[%clk 0:00:59.3]} 25. Nxg4
{[%clk 0:01:40.9]} 25... Bg7 {[%clk 0:00:59.6]} 26. Rab1 {[%clk 0:00:25.3]}
26... h5 {[%clk 0:00:56.7]} 27. Ne3 {[%clk 0:00:22.7]} 27... Rxe4 {[%clk
0:00:56.6]} 28. Rbd1 {[%clk 0:00:23.3]} 28... Ree8 {[%clk 0:00:43.2]} 29. Kf1
{[%clk 0:00:22.5]} 29... c6 {[%clk 0:00:38.4]} 30. Rxd8 {[%clk 0:00:17.7]} 30...
Rxd8 {[%clk 0:00:38.3]} 31. Ke2 {[%clk 0:00:18.6]} 31... Ke7 {[%clk 0:00:34.7]}
32. h4 {[%clk 0:00:18.1]} 32... f5 {[%clk 0:00:28.7]} 33. g3 {[%clk 0:00:18]}
33... Rd6 {[%clk 0:00:21.1]} 34. Kf3 {[%clk 0:00:17]} 34... Re6 {[%clk 0:00:21]}
35. Rd1 {[%clk 0:00:16.7]} 35... Rd6 {[%clk 0:00:20.9]} 36. Rxd6 {[%clk
0:00:15.7]} 36... Kxd6 {[%clk 0:00:21.8]} 37. Ng2 {[%clk 0:00:16.3]} 37... Ke6
{[%clk 0:00:19.5]} 38. Nf4+ {[%clk 0:00:16.4]} 38... Kf7 {[%clk 0:00:19.9]} 39.
Nd3 {[%clk 0:00:16.7]} 39... Bf8 {[%clk 0:00:18.3]} 40. Ne5+ {[%clk 0:00:16.6]}
40... Kf6 {[%clk 0:00:17.2]} 41. Nxc6 {[%clk 0:00:17.5]} 41... Bd6 {[%clk
0:00:16.5]} 42. Nb4 {[%clk 0:00:12.7]} 42... a5 {[%clk 0:00:15.9]} 43. Nd5+
{[%clk 0:00:13.1]} 43... Kf7 {[%clk 0:00:12.3]} 44. Ke2 {[%clk 0:00:12.7]} 44...
Ke6 {[%clk 0:00:07.3]} 45. Nf4+ {[%clk 0:00:12.1]} 45... Kf6 {[%clk 0:00:07.3]}
46. Nd3 {[%clk 0:00:11.6]} 46... g5 {[%clk 0:00:07.3]} 47. hxg5+ {[%clk
0:00:11.3]} 47... Kxg5 {[%clk 0:00:08.2]} 48. Kf3 {[%clk 0:00:11.7]} 48... Kf6
{[%clk 0:00:07.4]} 49. Nf4 {[%clk 0:00:11.8]} 49... Kg5 {[%clk 0:00:07.9]} 50.
Nd5 {[%clk 0:00:11.9]} 50... Be5 {[%clk 0:00:05.4]} 51. Nf4 {[%clk 0:00:11.8]}
51... Bd6 {[%clk 0:00:04.2]} 52. Ne6+ {[%clk 0:00:12.1]} 52... Kf6 {[%clk
0:00:03.8]} 53. Nd4 {[%clk 0:00:12.4]} 53... b4 {[%clk 0:00:04.3]} 54. cxb4
{[%clk 0:00:11.8]} 54... axb4 {[%clk 0:00:05.2]} 55. a4 {[%clk 0:00:11.6]} 55...
Be5 {[%clk 0:00:05.2]} 56. Nc6 {[%clk 0:00:11.9]} 56... Bxb2 {[%clk 0:00:05.3]}
57. Nxb4 {[%clk 0:00:12]} 57... Bc3 {[%clk 0:00:05.1]} 58. Nd5+ {[%clk
0:00:12.2]} 58... Ke5 {[%clk 0:00:05.3]} 59. Nxc3 {[%clk 0:00:13.1]} 1-0

[Event "*** SCC Grand Prix: Titled Tuesday Blitz"]
[Site "Chess.com"]
[Date "2020.06.09"]
[Round "2"]
[White "Tesla37"]
[Black "aleksandrovaleksei"]
[Result "1-0"]
[WhiteElo "2924"]
[BlackElo "2593"]
[TimeControl "180+1"]
[EndTime "9:19:20 PDT"]
[Termination "Tesla37 won on time"]

1. Nf3 {[%clk 0:02:59.4]} 1... Nf6 {[%clk 0:02:58.2]} 2. g3 {[%clk 0:02:59.5]}
2... b5 {[%clk 0:02:57.4]} 3. Bg2 {[%clk 0:02:59.9]} 3... Bb7 {[%clk 0:02:58]}
4. O-O {[%clk 0:03:00.4]} 4... e6 {[%clk 0:02:57.3]} 5. d3 {[%clk 0:03:00.5]}
5... Be7 {[%clk 0:02:56.3]} 6. e4 {[%clk 0:02:59.5]} 6... d6 {[%clk 0:02:54.3]}
7. a4 {[%clk 0:02:57.7]} 7... b4 {[%clk 0:02:53.2]} 8. Nbd2 {[%clk 0:02:57]}
8... O-O {[%clk 0:02:52.1]} 9. Re1 {[%clk 0:02:56.3]} 9... c5 {[%clk 0:02:50.3]}
10. b3 {[%clk 0:02:50.1]} 10... Nc6 {[%clk 0:02:47.7]} 11. Bb2 {[%clk
0:02:49.6]} 11... Nd7 {[%clk 0:02:42.7]} 12. Nc4 {[%clk 0:02:48]} 12... Qc7
{[%clk 0:02:41]} 13. a5 {[%clk 0:02:45.5]} 13... Rad8 {[%clk 0:02:35.2]} 14. h4
{[%clk 0:02:42]} 14... Bf6 {[%clk 0:02:27.6]} 15. Qc1 {[%clk 0:02:24.8]} 15...
Nd4 {[%clk 0:02:13]} 16. Nh2 {[%clk 0:02:08]} 16... Nb5 {[%clk 0:02:06.6]} 17.
Bxf6 {[%clk 0:01:52.9]} 17... Nxf6 {[%clk 0:02:05]} 18. Qd2 {[%clk 0:01:47.6]}
18... Rfe8 {[%clk 0:01:57.2]} 19. Ne3 {[%clk 0:01:42.1]} 19... d5 {[%clk
0:01:32.9]} 20. e5 {[%clk 0:01:36.1]} 20... Nd7 {[%clk 0:01:22.4]} 21. Neg4
{[%clk 0:01:25.3]} 21... h6 {[%clk 0:01:07.1]} 22. h5 {[%clk 0:01:14]} 22... Nd4
{[%clk 0:01:04.9]} 23. Nf3 {[%clk 0:01:08.4]} 23... Nb8 {[%clk 0:01:00.5]} 24.
Nxd4 {[%clk 0:01:06.6]} 24... cxd4 {[%clk 0:01:00.1]} 25. Qxb4 {[%clk
0:01:01.7]} 25... Nc6 {[%clk 0:00:55.2]} 26. Qd2 {[%clk 0:01:00.4]} 26... Qe7
{[%clk 0:00:54.7]} 27. f4 {[%clk 0:00:51.5]} 27... Qb4 {[%clk 0:00:50.5]} 28.
Qf2 {[%clk 0:00:50.9]} 28... Qc5 {[%clk 0:00:36.5]} 29. f5 {[%clk 0:00:33.1]}
29... exf5 {[%clk 0:00:34.6]} 30. Qxf5 {[%clk 0:00:33]} 30... Bc8 {[%clk
0:00:33.8]} 31. Qf4 {[%clk 0:00:32.6]} 31... Bxg4 {[%clk 0:00:33.5]} 32. Qxg4
{[%clk 0:00:32.6]} 32... Nxe5 {[%clk 0:00:33.1]} 33. Qf5 {[%clk 0:00:32.6]}
33... f6 {[%clk 0:00:23.8]} 34. Re2 {[%clk 0:00:30.8]} 34... Qc3 {[%clk
0:00:18.5]} 35. Rae1 {[%clk 0:00:16.7]} 35... Qxa5 {[%clk 0:00:18]} 36. g4
{[%clk 0:00:16.9]} 36... Qc7 {[%clk 0:00:17.8]} 37. g5 {[%clk 0:00:15.9]} 37...
hxg5 {[%clk 0:00:17.8]} 38. h6 {[%clk 0:00:16.2]} 38... Qf7 {[%clk 0:00:17.8]}
39. hxg7 {[%clk 0:00:14.8]} 39... Qxg7 {[%clk 0:00:17.6]} 40. Bh3 {[%clk
0:00:13.7]} 40... Kf8 {[%clk 0:00:16.3]} 41. Kf2 {[%clk 0:00:13]} 41... Qh6
{[%clk 0:00:13.8]} 42. Rxe5 {[%clk 0:00:11.8]} 42... Qh4+ {[%clk 0:00:11.5]} 43.
Kg2 {[%clk 0:00:11.4]} 43... g4 {[%clk 0:00:09.8]} 44. Rxe8+ {[%clk 0:00:08.4]}
44... Rxe8 {[%clk 0:00:09.5]} 45. Rxe8+ {[%clk 0:00:09]} 45... Kxe8 {[%clk
0:00:09.7]} 46. Bxg4 {[%clk 0:00:09.9]} 46... Qh6 {[%clk 0:00:07.1]} 47. Qe6+
{[%clk 0:00:09.5]} 47... Kf8 {[%clk 0:00:06.8]} 48. Qd6+ {[%clk 0:00:09.7]}
48... Kg7 {[%clk 0:00:06.2]} 49. Qd7+ {[%clk 0:00:09.8]} 49... Kg6 {[%clk
0:00:05.6]} 50. Qf5+ {[%clk 0:00:09.4]} 50... Kg7 {[%clk 0:00:05.4]} 51. Qxd5
{[%clk 0:00:09.8]} 51... Qd2+ {[%clk 0:00:04.5]} 52. Kh3 {[%clk 0:00:10]} 52...
Qxc2 {[%clk 0:00:03.2]} 53. Qd7+ {[%clk 0:00:09.4]} 53... Kh6 {[%clk 0:00:02.4]}
54. Qxd4 {[%clk 0:00:07.4]} 1-0